fUST/lending_fUST_20240126
["ID","MTS","AMOUNT","RATE_DAILY","PERIOD"]
[312770356,1706205040604,-500.0,0.00038799,15]
[312770357,1706205040613,-500.0,0.00038799,15]
[312770358,1706205040622,-500.0,0.00038799,15]
[312770359,1706205040632,-500.0,0.00038799,15]
[312770360,1706205040641,-500.0,0.00038799,15]
[312770361,1706205040650,-500.0,0.00038799,15]
[312770362,1706205040659,-500.0,0.00038799,15]
[312770363,1706205040668,-500.0,0.00038799,15]
[312770364,1706205040677,-500.0,0.00038799,15]
[312770366,1706205040686,-500.0,0.00038799,15]
[312770367,1706205040695,-500.0,0.00038799,15]
[312770368,1706205040704,-590.11891124,0.00038799,15]
[312770369,1706205040713,-500.0,0.00038799,15]
[312770370,1706205040723,-500.0,0.00038799,15]
[312770371,1706205040731,-500.0,0.00038799,15]
[312770372,1706205040740,-500.0,0.00038799,15]
[312770373,1706205040749,-500.0,0.00038799,15]
[312770374,1706205040759,-500.0,0.00038799,15]
[312770375,1706205040767,-500.0,0.00038799,15]
[312770376,1706205040776,-500.0,0.00038799,15]
[312770377,1706205040785,-500.0,0.00038799,15]
[312770378,1706205040794,-500.0,0.00038799,15]
[312770379,1706205040803,-409.32301523,0.00038799,15]
[312770380,1706205040812,-500.0,0.00038799,15]
[312770381,1706205040821,-500.0,0.00038799,15]
[312770382,1706205040831,-370.14469953,0.00038799,15]
[312770383,1706205040840,-500.0,0.00038799,15]
[312770384,1706205040849,-500.0,0.00038799,15]
[312770385,1706205040858,-500.0,0.00038799,15]
[312770386,1706205040868,-500.0,0.00038799,15]
[312770387,1706205040877,-500.0,0.00038799,15]
[312770388,1706205040886,-500.0,0.00038799,15]
[312770389,1706205040895,-500.0,0.00038799,15]
[312770390,1706205040905,-500.0,0.00038799,15]
[312770391,1706205040914,-500.0,0.00038799,15]
[312770392,1706205040923,-500.0,0.00038799,15]
[312770393,1706205040932,-500.0,0.00038799,15]
[312770394,1706205040941,-500.0,0.00038799,15]
[312770395,1706205040950,-500.0,0.00038799,15]
[312770396,1706205040959,-500.0,0.00038799,15]
[312770397,1706205040968,-500.0,0.00038799,15]
[312770398,1706205040977,-500.0,0.00038799,15]
[312770399,1706205040986,-500.0,0.00038799,15]
[312770400,1706205040995,-500.0,0.00038799,15]
[312770401,1706205041004,-500.0,0.00038799,15]
[312770402,1706205041013,-500.0,0.00038799,15]
[312770403,1706205041023,-500.0,0.00038799,15]
[312770404,1706205041032,-500.0,0.00038799,15]
[312770405,1706205041041,-500.0,0.00038799,15]
[312770406,1706205041050,-500.0,0.00038799,15]
[312770407,1706205041059,-500.0,0.00038799,15]
[312770408,1706205041068,-500.0,0.00038799,15]
[312770409,1706205041078,-500.0,0.00038799,15]
[312770410,1706205041087,-500.0,0.00038799,15]
[312770411,1706205041096,-500.0,0.00038799,15]
[312770412,1706205041106,-500.0,0.00038799,15]
[312770413,1706205041115,-500.0,0.00038799,15]
[312770414,1706205041195,-500.0,0.00038799,15]
[312770415,1706205041205,-500.0,0.00038799,15]
[312770416,1706205041214,-500.0,0.00038799,15]
[312770417,1706205041224,-500.0,0.00038799,15]
[312770418,1706205041233,-500.0,0.00038799,15]
[312770419,1706205041243,-500.0,0.00038799,15]
[312770420,1706205041252,-500.0,0.00038799,15]
[312770421,1706205041261,-470.59262644,0.00038799,15]
[312770422,1706205041271,-500.0,0.00038799,15]
[312770423,1706205041280,-455.80247368,0.00038799,15]
[312770424,1706205041289,-500.0,0.00038799,15]
[312770425,1706205041299,-500.0,0.00038799,15]
[312770426,1706205041308,-500.0,0.00038799,15]
[312770427,1706205041317,-500.0,0.00038799,15]
[312770429,1706205041327,-500.0,0.00038799,15]
[312770431,1706205041336,-500.0,0.00038799,15]
[312770433,1706205041345,-427.39032001,0.00038799,15]
[312770435,1706205041355,-500.0,0.00038799,15]
[312770437,1706205041364,-500.0,0.00038799,15]
[312770439,1706205041373,-500.0,0.00038799,15]
[312770441,1706205041382,-500.0,0.00038799,15]
[312770443,1706205041392,-500.0,0.00038799,15]
[312770445,1706205041401,-104138.17218487,0.000388,10]
[312770459,1706205041523,-15761.12346944,0.000388,10]
[312770685,1706205043357,-155.0,0.00028766,4]
[312770687,1706205043366,-155.0,0.00028767,2]
[312770689,1706205043375,-398.3444231,0.00029315,2]
[312770691,1706205043384,-155.0,0.00030137,2]
[312770693,1706205043393,-155.0,0.00031507,2]
[312770695,1706205043402,-1258.05212088,0.000388,10]
[312771060,1706205046286,-306.0,0.00029315,2]
[312771063,1706205046295,-153.0,0.00029315,2]
[312771066,1706205046305,-155.0,0.00032877,2]
[312771069,1706205046314,-155.0,0.00034247,2]
[312771072,1706205046323,-2988.73033288,0.000388,10]
[312771077,1706205046342,-155.0,0.00035617,2]
[312771080,1706205046352,-231.12132242,0.000388,10]
[312774390,1706205843260,797.64547304,0.00029,30]
[312774625,1706206238506,-168.209573,0.0002257,2]
[312774627,1706206238516,-1583.23422085,0.00022998,2]
[312774629,1706206238525,-426.19756797,0.00022999,2]
[312774631,1706206238534,-1416.02167727,0.00023,2]
[312774633,1706206238543,-3970.33105698,0.00023,2]
[312774635,1706206238552,-166.666666,0.00023003,2]
[312774638,1706206238562,-470.87385711,0.00023046,2]
[312774640,1706206238571,-2074.94658461,0.00023046,2]
[312774642,1706206238580,-24900.0,0.00023048,2]
[312774644,1706206238589,-168.641972,0.0002309,2]
[312774646,1706206238599,-166.666666,0.0002363,2]
[312774648,1706206238608,-166.666666,0.00024257,2]
[312774650,1706206238617,-312.2386522,0.00024658,2]
[312774653,1706206238627,-166.666666,0.00024885,2]
[312774654,1706206238638,-11286.56,0.0002497,3]
[312774656,1706206238647,-21522.72,0.0002499,3]
[312774659,1706206238658,-17935.6,0.0002499,3]
[312774661,1706206238667,-311.91244819,0.00024999,2]
[312774663,1706206238676,-25347.50051164,0.00025,2]
[312774665,1706206238686,-7385.90525508,0.00025,2]
[312774667,1706206238695,-155.0,0.00025,2]
[312774668,1706206238704,-4725.91421399,0.00025,2]
[312774670,1706206238713,-161.66762662,0.00025276,2]
[312774672,1706206238722,-274.65114385,0.00025376,2]
[312774674,1706206238732,-976.79905731,0.00025376,2]
[312774677,1706206238741,-200.0,0.00025387,7]
[312774679,1706206238750,-166.666666,0.00025512,2]
[312774680,1706206238760,-166.666666,0.00026139,2]
[312774682,1706206238769,-290.53836744,0.00027,2]
[312774684,1706206238778,-155.0,0.00027397,2]
[312774686,1706206238787,-280.0,0.00027925,15]
[312774688,1706206238796,-421.27166736,0.00028196,2]
[312774690,1706206238805,-1198.71036477,0.00028196,2]
[312774692,1706206238814,-323.23376189,0.00028196,2]
[312774694,1706206238824,-713.25472283,0.00028196,2]
[312774696,1706206238833,-309.31860756,0.00028196,2]
[312774698,1706206238842,-4011.78855735,0.00028196,2]
[312774700,1706206238851,-1266.95335862,0.00028196,2]
[312774702,1706206238860,-1916.72029117,0.00028196,2]
[312774704,1706206238871,-500.0,0.00028196,2]
[312774707,1706206238881,-8653.83689169,0.00028197,2]
[312774708,1706206238890,-512.38921039,0.00028197,2]
[312774710,1706206238900,-571.33828928,0.00028197,2]
[312774713,1706206238909,-170.03961878,0.00028197,2]
[312774715,1706206238920,-350.0,0.00028197,2]
[312774717,1706206238931,-500.0,0.00028197,2]
[312774719,1706206238940,-500.0,0.00028197,2]
[312774720,1706206238950,-500.0,0.00028197,2]
[312774722,1706206238960,-500.0,0.00028197,2]
[312774725,1706206238970,-500.0,0.00028197,2]
[312774726,1706206238979,-377.65972868,0.00028197,2]
[312774728,1706206238988,-165.75185927,0.00028197,2]
[312774730,1706206238998,-276000.0,0.00028198,2]
[312774732,1706206239007,-269.20480479,0.00028767,2]
[312774733,1706206239016,-16794.35324464,0.000289,2]
[312774735,1706206239025,-155.0,0.00029,2]
[312774736,1706206239034,-1932.44477539,0.00029,2]
[312774737,1706206239044,-833.4574876,0.00029,2]
[312774738,1706206239053,-2038.7168945,0.00029,2]
[312774739,1706206239063,-279.82176233,0.00029,2]
[312774741,1706206239072,-1826.97153487,0.00029,2]
[312774742,1706206239081,-303.61999861,0.00029,2]
[312774745,1706206239092,-2085.40450746,0.00029,2]
[312774747,1706206239103,-6129.67718162,0.00029,2]
[312774749,1706206239112,-764.4359775,0.00029,2]
[312774751,1706206239121,-261.74344198,0.00029,2]
[312774760,1706206239202,-155.0,0.00029,7]
[312774762,1706206239212,-300.0,0.00029,2]
[312774764,1706206239220,-153.0,0.00029178,2]
[312774766,1706206239229,-157.3764171,0.00029315,2]
[312774768,1706206239238,-153.0,0.00029315,2]
[312774770,1706206239247,-230.3948546,0.00029315,2]
[312774772,1706206239256,-159.3657322,0.00029315,2]
[312774775,1706206239266,-250.5513808,0.00029315,2]
[312774777,1706206239275,-199.3339408,0.00029315,2]
[312774778,1706206239284,-153.0,0.00029315,2]
[312774780,1706206239293,-171.7059798,0.00029315,2]
[312774783,1706206239304,-153.0,0.00029589,2]
[312774785,1706206239315,-2543.41353878,0.0002979,7]
[312774787,1706206239324,-161.66762662,0.000299,2]
[312774789,1706206239333,-291.31420188,0.0003,3]
[312774791,1706206239342,-243.76580051,0.0003,4]
[312774793,1706206239351,-155.0,0.0003,4]
[312774795,1706206239360,-1000.0,0.0003,4]
[312774797,1706206239369,-2372.54255137,0.0003,2]
[312774799,1706206239379,-139264.62830083,0.0003,4]
[312774801,1706206239388,-166.95729913,0.0003,2]
[312774803,1706206239397,-910.70532862,0.0003,2]
[312774805,1706206239406,-2718.33227316,0.0003,2]
[312774807,1706206239415,-6202.72987763,0.0003,2]
[312774809,1706206239424,-2195.13400402,0.0003,2]
[312774811,1706206239433,-4988.57079427,0.0003,3]
[312774813,1706206239442,-18606.04614329,0.0003,2]
[312774815,1706206239451,-700.57786282,0.0003,2]
[312774816,1706206239460,-155.74648817,0.0003,4]
[312774818,1706206239469,-688.78830185,0.0003,4]
[312774820,1706206239477,-265.0,0.0003,2]
[312774822,1706206239486,-2000.0,0.000301,2]
[312774824,1706206239495,-155.16244617,0.00030136,2]
[312774827,1706206239505,-153.0,0.00030137,2]
[312774829,1706206239514,-153.0,0.00030137,2]
[312774831,1706206239523,-153.0,0.00030137,2]
[312774833,1706206239532,-153.0,0.00030137,2]
[312774834,1706206239541,-153.0,0.00030137,2]
[312774836,1706206239550,-153.0,0.00030137,2]
[312774839,1706206239559,-153.0,0.00030137,2]
[312774841,1706206239568,-153.0,0.00030137,2]
[312774843,1706206239577,-153.0,0.00030137,2]
[312774845,1706206239587,-153.0,0.00030137,2]
[312774846,1706206239596,-153.0,0.00030137,2]
[312774848,1706206239605,-153.0,0.00030137,2]
[312774850,1706206239614,-153.0,0.00030137,2]
[312774852,1706206239623,-153.0,0.00030137,2]
[312774854,1706206239632,-153.0,0.00030137,2]
[312774856,1706206239641,-153.0,0.00030137,2]
[312774859,1706206239651,-153.0,0.00030137,2]
[312774861,1706206239660,-153.0,0.00030137,2]
[312774863,1706206239669,-153.0,0.00030137,2]
[312774865,1706206239680,-153.0,0.00030137,2]
[312774866,1706206239690,-153.0,0.00030137,2]
[312774868,1706206239699,-153.0,0.00030137,2]
[312774870,1706206239708,-153.0,0.00030137,2]
[312774872,1706206239717,-153.0,0.00030137,2]
[312774874,1706206239726,-153.0,0.00030137,2]
[312774876,1706206239735,-153.0,0.00030137,2]
[312774878,1706206239744,-199.3339408,0.00030137,2]
[312774880,1706206239753,-153.0,0.00030137,2]
[312774882,1706206239762,-153.0,0.00030137,2]
[312774884,1706206239771,-153.0,0.00030137,2]
[312774886,1706206239779,-153.0,0.00030137,2]
[312774888,1706206239789,-153.0,0.00030137,2]
[312774890,1706206239798,-153.0,0.00030137,2]
[312774892,1706206239806,-153.0,0.00030137,2]
[312774894,1706206239815,-153.0,0.00030137,2]
[312774896,1706206239825,-199.3339408,0.00030137,2]
[312774898,1706206239833,-153.0,0.00030137,2]
[312774900,1706206239842,-153.0,0.00030137,2]
[312774902,1706206239852,-153.0,0.00030137,2]
[312774904,1706206239861,-153.0,0.00030137,2]
[312774906,1706206239871,-153.0,0.00030137,2]
[312774908,1706206239883,-153.0,0.00030137,2]
[312774910,1706206239892,-153.0,0.00030137,2]
[312774912,1706206239900,-153.0,0.00030137,2]
[312774914,1706206239909,-153.0,0.00030137,2]
[312774916,1706206239919,-199.3339408,0.00030137,2]
[312774918,1706206239928,-153.0,0.00030137,2]
[312774920,1706206239938,-153.0,0.00030137,2]
[312774922,1706206239947,-366.1405559,0.00030137,2]
[312774924,1706206239956,-153.0,0.00030137,2]
[312774926,1706206239966,-199.3339408,0.00030137,2]
[312774928,1706206239975,-153.0,0.00030137,2]
[312774930,1706206239984,-153.0,0.00030137,2]
[312774932,1706206239994,-199.3339408,0.00030137,2]
[312774934,1706206240013,-199.3339408,0.00030137,2]
[312774936,1706206240022,-199.3339408,0.00030137,2]
[312774938,1706206240031,-199.3339408,0.00030137,2]
[312774940,1706206240040,-199.3339408,0.00030137,2]
[312774942,1706206240049,-199.3339408,0.00030137,2]
[312774944,1706206240058,-199.3339408,0.00030137,2]
[312774946,1706206240067,-199.3339408,0.00030137,2]
[312774948,1706206240076,-199.3339408,0.00030137,2]
[312774950,1706206240085,-199.3339408,0.00030137,2]
[312774952,1706206240094,-199.3339408,0.00030137,2]
[312774954,1706206240103,-199.3339408,0.00030137,2]
[312774956,1706206240113,-192.6165499,0.00030137,2]
[312774958,1706206240121,-157.894736,0.00030137,2]
[312774960,1706206240131,-332.769515,0.00030137,2]
[312774962,1706206240140,-1400.0,0.00030559,2]
[312774964,1706206240149,-177.296875,0.00030559,2]
[312774966,1706206240158,-9764.17724192,0.00030559,2]
[312774968,1706206240167,-2050.4772208,0.00030559,2]
[312774970,1706206240176,-3115.21384498,0.00030559,2]
[312774972,1706206240186,-422.22876417,0.00030634,2]
[312774974,1706206240194,-184.72526531,0.00030653,2]
[312774976,1706206240203,-391.0,0.00030718,15]
[312774978,1706206240213,-157.894736,0.00030746,2]
[312774980,1706206240222,-326.58097042,0.00031,7]
[312774982,1706206240231,-332.769515,0.00031115,2]
[312774984,1706206240240,-150.0,0.00031136,2]
[312774986,1706206240250,-157.894736,0.00031355,2]
[312774988,1706206240260,-157.894736,0.00031963,2]
[312774990,1706206240270,-9502.11081765,0.00032,10]
[312774992,1706206240279,-3137.0499637,0.00032,2]
[312774994,1706206240288,-332.769515,0.00032094,2]
[312774996,1706206240297,-150.0,0.00032136,2]
[312774998,1706206240306,-157.894736,0.00032572,2]
[312775000,1706206240315,-26240.767231,0.00032877,2]
[312775002,1706206240325,-155.0,0.0003298,2]
[312775004,1706206240334,-155.0,0.00033,4]
[312775006,1706206240344,-2849.23045787,0.00033,2]
[312775008,1706206240352,-2028.23697359,0.00033,2]
[312775010,1706206240361,-32630.78087586,0.00033,10]
[312775012,1706206240370,-276.02916029,0.00033,2]
[312775014,1706206240379,-200.0,0.00033,10]
[312775016,1706206240388,-166.0,0.00033,2]
[312775018,1706206240398,-265.0,0.00033,2]
[312775020,1706206240407,-265.0,0.00033,2]
[312775022,1706206240416,-332.769515,0.00033072,2]
[312775024,1706206240425,-157.894736,0.00033181,2]
[312775026,1706206240434,-157.894736,0.0003379,2]
[312775037,1706206240507,-200.0,0.0003379,15]
[312775040,1706206240516,-348.0,0.0003379,15]
[312775042,1706206240525,-51749.84810145,0.00034,2]
[312775044,1706206240534,-332.769515,0.00034051,2]
[312775046,1706206240543,-246.5520124,0.00034247,2]
[312775048,1706206240552,-50000.0,0.00034376,3]
[312775050,1706206240561,-50000.0,0.00034376,3]
[312775052,1706206240570,-66816.15541095,0.00034376,3]
[312775054,1706206240579,-11631.52029047,0.00034376,4]
[312775056,1706206240588,-5000.0,0.00034376,7]
[312775058,1706206240598,-5812.34570877,0.00034376,4]
[312775060,1706206240607,-157.894736,0.00034399,2]
[312775062,1706206240616,-647.80762362,0.0003441,2]
[312775064,1706206240625,-333.50991933,0.00035,4]
[312775066,1706206240635,-846.2128653,0.00035,2]
[312775068,1706206240644,-155.0,0.00035,2]
[312775070,1706206240653,-2359.3181247,0.00035,2]
[312775072,1706206240662,-657.40715545,0.00035,7]
[312775074,1706206240671,-184.66976843,0.00035,2]
[312775076,1706206240680,-48717.90607386,0.00035,2]
[312775078,1706206240689,-3927.87882193,0.00035,2]
[312775080,1706206240699,-10172.98608814,0.00035,2]
[312775082,1706206240708,-561.15763584,0.00035,2]
[312775084,1706206240717,-18367.38419833,0.00035,2]
[312775086,1706206240726,-157.894736,0.00035008,2]
[312775088,1706206240735,-332.769515,0.00035029,2]
[312775090,1706206240744,-1081.1,0.00035616,2]
[312775092,1706206240754,-1081.1,0.00035616,2]
[312775094,1706206240763,-1081.1,0.00035616,2]
[312775096,1706206240773,-1081.1,0.00035616,2]
[312775098,1706206240782,-1081.1,0.00035616,2]
[312775100,1706206240791,-1081.1,0.00035616,2]
[312775102,1706206240800,-1081.1,0.00035616,2]
[312775104,1706206240809,-1081.1,0.00035616,2]
[312775106,1706206240818,-1081.1,0.00035616,2]
[312775108,1706206240829,-1081.1,0.00035616,2]
[312775110,1706206240838,-1081.1,0.00035616,2]
[312775112,1706206240847,-1081.1,0.00035616,2]
[312775114,1706206240856,-1081.1,0.00035616,2]
[312775116,1706206240866,-1081.1,0.00035616,2]
[312775118,1706206240879,-1081.1,0.00035616,2]
[312775120,1706206240889,-1081.1,0.00035616,2]
[312775122,1706206240898,-1081.1,0.00035616,2]
[312775124,1706206240907,-1081.1,0.00035616,2]
[312775126,1706206240917,-1081.1,0.00035616,2]
[312775128,1706206240926,-1081.1,0.00035616,2]
[312775129,1706206240936,-1081.1,0.00035616,2]
[312775131,1706206240945,-1081.1,0.00035616,2]
[312775133,1706206240958,-1081.1,0.00035616,2]
[312775135,1706206240970,-1081.19102445,0.00035616,2]
[312775137,1706206240980,-157.894736,0.00035616,2]
[312775139,1706206240990,-155.0,0.00036,4]
[312775142,1706206240999,-222.49443918,0.00036,2]
[312775467,1706206244377,-153.0,0.00029178,2]
[312775469,1706206244387,-153.0,0.00029315,2]
[312775471,1706206244397,-153.0,0.00029315,2]
[312775473,1706206244406,-153.0,0.00029315,2]
[312775475,1706206244415,-153.0,0.00029315,2]
[312775477,1706206244425,-199.3339408,0.00029315,2]
[312775479,1706206244434,-42.50556082,0.00036,2]
[312775481,1706206244443,-265.0,0.00036,2]
[312775483,1706206244452,-265.0,0.00036,2]
[312775485,1706206244461,-332.769515,0.00036008,2]
[312775486,1706206244471,-621.39038118,0.0003613,2]
[312775487,1706206244480,-157.894736,0.00036225,2]
[312775488,1706206244489,-254.1375026,0.0003624,2]
[312775489,1706206244498,-157.894736,0.00036834,2]
[312775490,1706206244507,-1000.0,0.0003692,10]
[312775491,1706206244516,-332.769515,0.00036986,2]
[312775492,1706206244526,-419.50880109,0.00037,2]
[312775493,1706206244536,-144.6551841,0.0003715,5]
[312775494,1706206244548,-1026.65405285,0.0003715,5]
[312775629,1706206246577,-2179.9945045,0.0003715,5]
[312775945,1706207438620,-426.19756797,0.00023091,2]
[312775947,1706207438629,-3970.33105698,0.00023091,2]
[312775949,1706207438638,-1416.02167727,0.00023093,2]
[312775951,1706207438647,-274.65114385,0.00023095,2]
[312775953,1706207438657,-976.79905731,0.00023095,2]
[312775955,1706207438667,-4725.91421399,0.00025,2]
[312775957,1706207438677,-155.00465014,0.00025,2]
[312775959,1706207438686,-166.666666,0.00025223,2]
[312775961,1706207438695,-470.87385711,0.00025661,2]
[312775963,1706207438705,-7385.90525508,0.00025662,2]
[312775965,1706207438714,-24900.0,0.00025663,2]
[312775967,1706207438724,-166.666666,0.00025911,2]
[312775969,1706207438733,-167.777172,0.00026328,2]
[312775971,1706207438742,-166.666666,0.00026599,2]
[312775973,1706207438751,-290.53836744,0.00027,2]
[312775975,1706207438761,-166.666666,0.00027286,2]
[312775977,1706207438770,-166.666666,0.00027974,2]
[312775979,1706207438780,-11253.96,0.00028076,3]
[312775981,1706207438789,-13504.75,0.00028078,3]
[312775983,1706207438798,-323.23376189,0.00028086,2]
[312775985,1706207438808,-4011.78855735,0.00028086,2]
[312775987,1706207438817,-309.31860756,0.00028086,2]
[312775989,1706207438827,-1916.72029117,0.00028086,2]
[312775991,1706207438836,-500.0,0.00028086,2]
[312775993,1706207438845,-8653.83689169,0.00028086,2]
[312775995,1706207438855,-8649.5,0.00028088,3]
[312775997,1706207438864,-421.27166736,0.00028096,2]
[312775999,1706207438875,-1266.95335862,0.00028096,2]
[312776001,1706207438884,-505.77537598,0.00028096,2]
[312776003,1706207438893,-713.25472283,0.00028097,2]
[312776005,1706207438902,-1198.71036477,0.00028097,2]
[312776007,1706207438912,-276000.0,0.00028098,2]
[312776009,1706207438921,-200.0,0.00028214,15]
[312776011,1706207438931,-166.666666,0.00028662,2]
[312776013,1706207438940,-161.66762662,0.00028684,2]
[312776015,1706207438949,-1932.44477539,0.00029,2]
[312776017,1706207438958,-155.0,0.00029,2]
[312776019,1706207438968,-500.0,0.00029999,2]
[312776021,1706207438977,-170.03961878,0.00029999,2]
[312776023,1706207438987,-500.0,0.00029999,2]
[312776025,1706207438996,-500.0,0.00029999,2]
[312776027,1706207439005,-512.38921039,0.00029999,2]
[312776029,1706207439014,-350.0,0.00029999,2]
[312776031,1706207439024,-571.33828928,0.00029999,2]
[312776033,1706207439033,-500.0,0.00029999,2]
[312776035,1706207439042,-500.0,0.00029999,2]
[312776037,1706207439052,-165.75185927,0.00029999,2]
[312776039,1706207439061,-377.65972868,0.00029999,2]
[312776041,1706207439069,-688.78830185,0.0003,4]
[312776043,1706207439079,-1000.0,0.0003,4]
[312776044,1706207439088,-244.31917233,0.0003,4]
[312776047,1706207439097,-195.4790092,0.0003,2]
[312776049,1706207439107,-139264.62830083,0.0003,4]
[312776051,1706207439116,-155.0,0.0003,4]
[312776052,1706207439126,-2372.54255137,0.0003,2]
[312776054,1706207439135,-155.74648817,0.0003,4]
[312776056,1706207439144,-202.0,0.0003,2]
[312776058,1706207439153,-199.3339408,0.00030137,2]
[312776061,1706207439164,-199.3339408,0.00030137,2]
[312776063,1706207439174,-199.3339408,0.00030137,2]
[312776065,1706207439183,-199.3339408,0.00030137,2]
[312776066,1706207439192,-288.400246,0.00030137,2]
[312776067,1706207439201,-157.894736,0.00030137,2]
[312776068,1706207439210,-199.3339408,0.000302,2]
[312776069,1706207439221,-199.3339408,0.000302,2]
[312776070,1706207439230,-199.3339408,0.000302,2]
[312776071,1706207439243,-199.3339408,0.000302,2]
[312776072,1706207439252,-199.3339408,0.000302,2]
[312776073,1706207439261,-192.6165499,0.000302,2]
[312776074,1706207439271,-153.0,0.00030641,2]
[312776075,1706207439281,-153.0,0.00030641,2]
[312776076,1706207439290,-153.0,0.00030641,2]
[312776077,1706207439299,-153.0,0.00030641,2]
[312776078,1706207439308,-153.0,0.00030641,2]
[312776079,1706207439319,-157.894736,0.00030746,2]
[312776080,1706207439329,-291.31420188,0.00030778,3]
[312776081,1706207439337,-250.5513808,0.00030778,2]
[312776082,1706207439347,-199.3339408,0.00030778,2]
[312776083,1706207439357,-159.3657322,0.00030778,2]
[312776084,1706207439366,-153.0,0.00030778,2]
[312776085,1706207439377,-157.3764171,0.00030778,2]
[312776086,1706207439386,-230.3948546,0.00030778,2]
[312776087,1706207439394,-153.0,0.00030778,2]
[312776088,1706207439404,-171.7059798,0.00030778,2]
[312776089,1706207439413,-153.0,0.00030778,2]
[312776090,1706207439422,-153.0,0.00030778,2]
[312776091,1706207439432,-153.0,0.00030778,2]
[312776092,1706207439441,-199.3339408,0.00030778,2]
[312776093,1706207439450,-153.0,0.00030778,2]
[312776094,1706207439460,-153.0,0.00030778,2]
[312776095,1706207439468,-153.0,0.00030778,2]
[312776096,1706207439546,-199.3339408,0.00030778,2]
[312776097,1706207439555,-153.0,0.00030778,2]
[312776098,1706207439564,-153.0,0.00030778,2]
[312776099,1706207439573,-153.0,0.00030778,2]
[312776100,1706207439582,-153.0,0.00030778,2]
[312776101,1706207439590,-153.0,0.00030778,2]
[312776102,1706207439599,-153.0,0.00030778,2]
[312776103,1706207439608,-153.0,0.00030778,2]
[312776104,1706207439617,-153.0,0.00030778,2]
[312776105,1706207439627,-199.3339408,0.00030778,2]
[312776106,1706207439637,-153.0,0.00030778,2]
[312776107,1706207439646,-153.0,0.00030778,2]
[312776108,1706207439656,-153.0,0.00030778,2]
[312776109,1706207439665,-153.0,0.00030778,2]
[312776110,1706207439675,-153.0,0.00030778,2]
[312776111,1706207439683,-199.3339408,0.00030778,2]
[312776112,1706207439693,-153.0,0.00030778,2]
[312776113,1706207439702,-153.0,0.00030778,2]
[312776114,1706207439711,-199.3339408,0.00030778,2]
[312776115,1706207439720,-199.3339408,0.00030778,2]
[312776116,1706207439729,-153.0,0.00030778,2]
[312776117,1706207439738,-153.0,0.00030778,2]
[312776118,1706207439747,-153.0,0.00030778,2]
[312776119,1706207439757,-153.0,0.00030778,2]
[312776120,1706207439766,-153.0,0.00030778,2]
[312776121,1706207439775,-12485.78224637,0.00030785,2]
[312776122,1706207439784,-878.77595177,0.00030785,2]
[312776123,1706207439793,-167.69282352,0.00030826,2]
[312776124,1706207439803,-326.58097042,0.00031,7]
[312776125,1706207439812,-280.0,0.00031035,15]
[312776126,1706207439821,-153.0,0.00031052,2]
[312776127,1706207439830,-288.400246,0.00031115,2]
[312776128,1706207439839,-157.894736,0.00031355,2]
[312776129,1706207439849,-155.0,0.00031578,2]
[312776130,1706207439857,-153.0,0.000316,2]
[312776131,1706207439866,-153.0,0.000316,2]
[312776132,1706207439877,-153.0,0.000316,2]
[312776133,1706207439885,-153.0,0.000316,2]
[312776134,1706207439895,-153.0,0.000316,2]
[312776135,1706207439904,-153.0,0.000316,2]
[312776136,1706207439913,-153.0,0.000316,2]